fUST/lending_fUST_20241203
["ID","MTS","AMOUNT","RATE_DAILY","PERIOD"]
[344027901,1733224028810,-500.0,0.00033,30]
[344027902,1733224028830,-500.0,0.00033,30]
[344027903,1733224028853,-967.92673628,0.00033,30]
[344027904,1733224028875,-500.0,0.00033,30]
[344027905,1733224028896,-500.0,0.00033,30]
[344027906,1733224028917,-506.34833296,0.00033,30]
[344027907,1733224028938,-701.40776891,0.00033,30]
[344027908,1733224028959,-500.0,0.00033,30]
[344027909,1733224028980,-800.0,0.00033,30]
[344027910,1733224029001,-500.0,0.00033,30]
[344027911,1733224029022,-800.0,0.00033,30]
[344027912,1733224029042,-967.4,0.00033,30]
[344027913,1733224029062,-855.14159925,0.00033,30]
[344027914,1733224029082,-800.0,0.00033,30]
[344027915,1733224029107,-800.0,0.00033,30]
[344027916,1733224029128,-800.0,0.00033,30]
[344027917,1733224029148,-800.0,0.00033,30]
[344027918,1733224029169,-800.0,0.00033,30]
[344027919,1733224029190,-800.0,0.00033,30]
[344027920,1733224029211,-800.0,0.00033,30]
[344027921,1733224029232,-800.0,0.00033,30]
[344027922,1733224029254,-2200.0,0.00033,30]
[344027923,1733224029275,-500.0,0.00033,30]
[344027924,1733224029297,-500.0,0.00033,30]
[344027925,1733224029319,-800.0,0.00033,30]
[344027926,1733224029345,-2200.0,0.00033,30]
[344027927,1733224029367,-916.81411429,0.00033,30]
[344027928,1733224029389,-2200.0,0.00033,30]
[344027929,1733224029412,-2200.0,0.00033,30]
[344027930,1733224029433,-1951.1180954,0.00033,30]
[344027931,1733224030146,-248.8819046,0.00033,30]
[344027932,1733224030166,-2200.0,0.00033,30]
[344027933,1733224030185,-2200.0,0.00033,30]
[344027934,1733224030205,-2200.0,0.00033,30]
[344027935,1733224030225,-2200.0,0.00033,30]
[344027936,1733224030244,-2200.0,0.00033,30]
[344027937,1733224030264,-2200.0,0.00033,30]
[344027938,1733224030283,-2200.0,0.00033,30]
[344027939,1733224030305,-2200.0,0.00033,30]
[344027940,1733224030325,-1021.0072454,0.00033,30]
[344027941,1733224032114,-1250.01795368,0.00033,30]
[344027942,1733224032136,-1600.0,0.00033,30]
[344027943,1733224032158,-1600.0,0.00033,30]
[344027944,1733224032181,-1600.0,0.00033,30]
[344027945,1733224032203,-1600.0,0.00033,30]
[344027946,1733224032224,-1600.0,0.00033,30]
[344027947,1733224032247,-1600.0,0.00033,30]
[344027948,1733224032267,-1600.0,0.00033,30]
[344027949,1733224032289,-1600.0,0.00033,30]
[344027950,1733224032311,-1600.0,0.00033,30]
[344027951,1733224032332,-1600.0,0.00033,30]
[344027952,1733224032357,-1600.0,0.00033,30]
[344027953,1733224032378,-1600.0,0.00033,30]
[344027954,1733224032399,-800.0,0.00033,30]
[344027955,1733224032419,-1600.0,0.00033,30]
[344027956,1733224032440,-1368.01582369,0.00033,30]
[344027957,1733224032460,-2129.01806673,0.00033,30]
[344027958,1733224032480,-160.0,0.00033,2]
[344027959,1733224032501,-172.212187,0.00033029,2]
[344027960,1733224032522,-172.172954,0.00033029,2]
[344027961,1733224032544,-177.420914,0.00033029,2]
[344027962,1733224032567,-214.575587,0.00033029,2]
[344027963,1733224032592,-1345.636088,0.00033029,2]
[344027964,1733224032617,-775.148286,0.00033029,2]
[344027965,1733224032639,-817.33,0.00033065,7]
[344027966,1733224032660,-1750.0,0.00033087,30]
[344027967,1733224032681,-347.0,0.00033226,2]
[344027968,1733224032703,-278.599999,0.000333,8]
[344027969,1733224032724,-278.599999,0.000333,8]
[344027970,1733224032745,-278.6,0.000333,8]
[344027971,1733224032767,-817.33,0.00033339,7]
[344027972,1733224032789,-1750.0,0.00033361,30]
[344027973,1733224032812,-150.0,0.0003357,120]
[344027974,1733224032839,-817.33,0.00033613,7]
[344027975,1733224032860,-1750.0,0.00033635,30]
[344027976,1733224032880,-5000.0,0.00033666,120]
[344027977,1733224032902,-151.0,0.00033753,120]
[344027978,1733224032926,-817.33,0.00033887,7]
[344027979,1733224032947,-1750.0,0.00033909,30]
[344027980,1733224032968,-1000.0,0.00034,120]
[344027981,1733224032990,-300.0,0.00034,120]
[344027982,1733224033088,-800.599999,0.00034,11]
[344027983,1733224033110,-1282.0,0.00034,30]
[344027984,1733224033130,-250.0,0.00034,30]
[344027985,1733224033153,-817.33,0.00034161,7]
[344027986,1733224033176,-1750.0,0.00034183,30]
[344027987,1733224033200,-333.48799,0.000342,120]
[344027988,1733224033222,-300.0,0.000343,9]
[344027989,1733224033245,-300.0,0.000343,9]
[344027990,1733224033267,-300.0,0.000343,9]
[344027991,1733224033289,-817.33,0.00034435,7]
[344027992,1733224033310,-1750.0,0.00034457,30]
[344027993,1733224033331,-314.7029031,0.00034603,30]
[344027994,1733224033355,-228.035914,0.00034603,30]
[344027995,1733224033377,-817.33,0.00034709,7]
[344027996,1733224033397,-1314.91046395,0.00034728,12]
[344027997,1733224033418,-1750.0,0.00034731,30]
[344027998,1733224033438,-372.0,0.000348,3]
[344027999,1733224033459,-1333.0,0.00034849,120]
[344028000,1733224033480,-1622.78,0.000349,7]
[344028001,1733224033502,-817.33,0.00034983,7]
[344028002,1733224033524,-10495.51129924,0.00035,2]
[344028003,1733224033545,-505.12110251,0.00035,2]
[344028004,1733224033567,-207.13222,0.00035,120]
[344028005,1733224033591,-209.73695,0.00035,120]
[344028006,1733224033614,-546.36028033,0.00035,60]
[344028007,1733224033636,-500.0,0.00035,120]
[344028008,1733224033657,-8077.28442566,0.00035,120]
[344028009,1733224033677,-2151.62,0.00035,120]
[344028010,1733224033698,-10000.0,0.00035,120]
[344028011,1733224033719,-276.88,0.00035,69]
[344028012,1733224033739,-2449.74375181,0.00035,30]
[344028013,1733224033760,-20856.0768813,0.00035,2]
[344028014,1733224034112,-2449.59576107,0.00035,2]
[344028015,1733224034135,-154.578384,0.00035,14]
[344028016,1733224034156,-196.042972,0.00035,14]
[344028017,1733224034177,-196.042972,0.00035,14]
[344028018,1733224034199,-151.0,0.00035,14]
[344028019,1733224034221,-1750.0,0.00035005,30]
[344028020,1733224034242,-151.0,0.00035014,120]
[344028021,1733224034265,-817.33,0.00035257,7]
[344028022,1733224034286,-1750.0,0.00035279,30]
[344028023,1733224034309,-300.0,0.000353,11]
[344028024,1733224034330,-300.0,0.000353,11]
[344028025,1733224034355,-300.0,0.000353,11]
[344028026,1733224034377,-347.0,0.00035441,2]
[344028027,1733224034398,-5000.0,0.00035467,14]
[344028028,1733224034420,-817.33,0.00035531,7]
[344028029,1733224034441,-1750.0,0.00035553,30]
[344028030,1733224034462,-500.0,0.00035616,30]
[344028031,1733224034483,-500.0,0.00035616,30]
[344028032,1733224034504,-500.0,0.00035616,30]
[344028033,1733224034525,-500.0,0.00035616,30]
[344028034,1733224034546,-500.0,0.00035616,30]
[344028035,1733224034567,-500.0,0.00035616,30]
[344028036,1733224034588,-259.56721297,0.00035616,30]
[344028037,1733224034609,-1000.0,0.00035616,120]
[344028038,1733224034634,-817.33,0.00035805,7]
[344028039,1733224034655,-1750.0,0.00035827,30]
[344028040,1733224034679,-1000.0,0.0003589,120]
[344028041,1733224034700,-7701.64706493,0.00036,2]
[344028042,1733224034722,-1000.0,0.00036,120]
[344028043,1733224034744,-1000.0,0.00036,120]
[344028044,1733224034765,-150.04107,0.00036,2]
[344028045,1733224034787,-250.0,0.00036,30]
[344028046,1733224034809,-817.33,0.00036079,7]
[344028047,1733224034830,-1750.0,0.00036101,30]
[344028048,1733224034855,-1000.0,0.00036164,120]
[344028049,1733224034876,-200.37032559,0.0003621,2]
[344028050,1733224034897,-260.62270171,0.0003624,2]
[344028051,1733224034918,-300.0,0.000363,13]
[344028052,1733224034940,-300.0,0.000363,13]
[344028053,1733224034963,-300.0,0.000363,13]
[344028054,1733224034987,-817.33,0.00036353,7]
[344028055,1733224035010,-1000.0,0.00036438,120]
[344028056,1733224035034,-817.33,0.00036627,7]
[344028057,1733224035056,-1000.0,0.00036712,120]
[344028058,1733224035078,-169.31854208,0.00036822,2]
[344028059,1733224035104,-817.4415,0.00036901,7]
[344028060,1733224035125,-1000.0,0.00036986,120]
[344028061,1733224035148,-1700.0,0.00037,120]
[344028062,1733224035168,-1000.0,0.0003726,120]
[344028063,1733224035189,-300.0,0.000373,14]
[344028064,1733224035209,-300.0,0.000373,14]
[344028065,1733224035229,-300.0,0.000373,14]
[344028066,1733224035249,-201.2,0.000375,112]
[344028067,1733224035270,-151.0,0.00037507,120]
[344028068,1733224035290,-1000.0,0.00037534,120]
[344028069,1733224035312,-347.0,0.00037656,2]
[344028070,1733224035333,-500.0,0.00037768,10]
[344028071,1733224035357,-500.0,0.00037768,10]
[344028072,1733224035377,-500.0,0.00037768,10]
[344028073,1733224035397,-500.0,0.00037768,10]
[344028074,1733224035417,-500.0,0.00037768,10]
[344028075,1733224035437,-500.0,0.00037768,10]
[344028076,1733224035458,-190.0,0.00037768,10]
[344028077,1733224035478,-800.0,0.00037768,10]
[344028078,1733224035502,-800.0,0.00037768,10]
[344028079,1733224035522,-800.0,0.00037768,10]
[344028080,1733224035542,-800.0,0.00037768,10]
[344028081,1733224035562,-800.0,0.00037768,10]
[344028082,1733224035581,-800.0,0.00037768,10]
[344028083,1733224035604,-800.0,0.00037768,10]
[344028084,1733224035627,-499.3,0.00037768,10]
[344028085,1733224035649,-800.0,0.00037768,10]
[344028086,1733224035671,-800.0,0.00037768,10]
[344028087,1733224035691,-498.85750651,0.00037768,10]
[344028088,1733224035712,-500.41878272,0.00037768,10]
[344028089,1733224035806,-800.0,0.00037768,10]
[344028090,1733224035827,-500.0,0.00037768,10]
[344028091,1733224035851,-2200.0,0.00037768,10]
[344028092,1733224035872,-500.0,0.00037768,10]
[344028093,1733224035893,-800.0,0.00037768,10]
[344028094,1733224035913,-500.0,0.00037768,10]
[344028095,1733224035934,-2200.0,0.00037768,10]
[344028096,1733224035955,-500.0,0.00037768,10]
[344028097,1733224035976,-800.0,0.00037768,10]
[344028098,1733224035996,-2200.0,0.00037768,10]
[344028099,1733224036017,-500.0,0.00037768,10]
[344028100,1733224036038,-800.0,0.00037768,10]
[344028101,1733224036058,-2200.0,0.00037768,10]
[344028102,1733224036080,-500.0,0.00037768,10]
[344028103,1733224036105,-800.0,0.00037768,10]
[344028104,1733224036130,-2200.0,0.00037768,10]
[344028105,1733224036153,-500.0,0.00037768,10]
[344028106,1733224036181,-2200.0,0.00037768,10]
[344028107,1733224036205,-500.0,0.00037768,10]
[344028108,1733224036229,-2200.0,0.00037768,10]
[344028109,1733224036251,-2200.0,0.00037768,10]
[344028110,1733224036272,-2200.0,0.00037768,10]
[344028111,1733224036292,-2200.0,0.00037768,10]
[344028112,1733224036313,-2200.0,0.00037768,10]
[344028113,1733224036335,-2200.0,0.00037768,10]
[344028114,1733224036365,-2200.0,0.00037768,10]
[344028115,1733224036387,-500.0,0.00037768,10]
[344028116,1733224036408,-947.82168844,0.00037768,10]
[344028117,1733224036429,-2200.0,0.00037768,10]
[344028118,1733224036450,-500.0,0.00037768,10]
[344028119,1733224036474,-2200.0,0.00037768,10]
[344028120,1733224036498,-500.0,0.00037768,10]
[344028121,1733224036520,-500.0,0.00037768,10]
[344028122,1733224036542,-1600.0,0.00037768,10]
[344028123,1733224036563,-163.21598222,0.00037768,10]
[344028124,1733224036585,-1600.0,0.00037768,10]
[344028125,1733224036617,-1600.0,0.00037768,10]
[344028126,1733224036643,-1600.0,0.00037768,10]
[344028127,1733224036667,-1600.0,0.00037768,10]
[344028128,1733224036691,-1600.0,0.00037768,10]
[344028129,1733224036717,-1600.0,0.00037768,10]
[344028130,1733224036739,-1600.0,0.00037768,10]
[344028131,1733224036761,-1600.0,0.00037768,10]
[344028132,1733224036784,-1600.0,0.00037768,10]
[344028133,1733224036806,-1600.0,0.00037768,10]
[344028134,1733224036829,-1600.0,0.00037768,10]
[344028135,1733224036855,-1600.0,0.00037768,10]
[344028136,1733224036877,-1600.0,0.00037768,10]
[344028137,1733224036900,-1600.0,0.00037768,10]
[344028138,1733224036921,-388.19667866,0.00037768,10]
[344028139,1733224036942,-499.3,0.00037768,10]
[344028140,1733224036964,-1000.0,0.00037808,120]
[344028141,1733224036984,-347.0,0.00037973,2]
[344028142,1733224037005,-1444.28140798,0.00037989,42]
[344028143,1733224037026,-740.09941927,0.00038,10]
[344028144,1733224037048,-1000.0,0.00038,120]
[344028145,1733224037069,-1000.0,0.00038,120]
[344028146,1733224037096,-1700.0,0.00038,120]
[344028147,1733224037117,-19500.0,0.00038,2]
[344028148,1733224037137,-250.0,0.00038,30]
[344028149,1733224037158,-1000.0,0.00038082,120]
[344028150,1733224037179,-813.0958197,0.000382,109]
[344028151,1733224037200,-300.0,0.000383,16]
[344028152,1733224037221,-300.0,0.000383,16]
[344028153,1733224037242,-300.0,0.000383,16]
[344028154,1733224037264,-150.0,0.0003832,120]
[344028155,1733224037285,-1000.0,0.00038356,120]
[344028156,1733224037307,-999.0,0.00038356,120]
[344028157,1733224037329,-390.59077184,0.0003863,120]
[344028158,1733224037358,-190.20566549,0.00038795,7]
[344028159,1733224037379,-1000.0,0.00039,120]
[344028160,1733224037401,-1311.15291025,0.00039,7]
[344028161,1733224037423,-64297.22225833,0.00039,120]
[344028162,1733224037445,-3238.97446665,0.000392,30]
[344028163,1733224037467,-300.0,0.000393,18]
[344028164,1733224037489,-300.0,0.000393,18]
[344028165,1733224037510,-300.0,0.000393,18]
[344028166,1733224037531,-329.4,0.000393,18]
[344028167,1733224037553,-333.488,0.000394,120]
[344028168,1733224037576,-999.0,0.00039452,120]
[344028169,1733224037603,-1000.77174338,0.000395,120]
[344028170,1733224037624,-218.75189864,0.000398,120]
[344028171,1733224037648,-347.0,0.00039871,14]
[344028172,1733224037670,-3000.0,0.000399,120]
[344028173,1733224037691,-3147.79675328,0.0004,60]
[344028174,1733224037712,-16091.17415571,0.0004,30]
[344028175,1733224037732,-253.30382986,0.0004,120]
[344028176,1733224037753,-200.0,0.0004,120]
[344028177,1733224037773,-14000.0,0.0004,4]
[344028178,1733224037794,-1000.0,0.0004,120]
[344028179,1733224037814,-799.458067,0.0004,120]
[344028180,1733224037834,-7000.0,0.0004,120]
[344028181,1733224037859,-51615.6896468,0.0004,120]
[344028182,1733224037880,-4004.0,0.0004,30]
[344028183,1733224037901,-30000.0,0.0004,30]
[344028184,1733224037923,-14045.0,0.0004,30]
[344028185,1733224037943,-1975.49694388,0.0004,120]
[344028186,1733224037964,-2318.92023754,0.0004,70]
[344028187,1733224037985,-1524.46603,0.0004,60]
[344028188,1733224038006,-2000.0,0.0004,120]
[344028189,1733224038027,-548.69198371,0.0004,30]
[344028190,1733224038048,-250.0,0.0004,30]
[344028191,1733224038069,-151.0,0.00040027,120]
[344028192,1733224038094,-300.0,0.000403,19]
[344028193,1733224038191,-300.0,0.000403,19]
[344028194,1733224038211,-300.0,0.000403,19]
[344028195,1733224038231,-300.0,0.000403,19]
[344028196,1733224038252,-1433.3,0.00040398,48]
[344028197,1733224038273,-1000.0,0.00040499,120]
[344028198,1733224038294,-999.0,0.00040547,120]
[344028199,1733224038316,-219.31960427,0.00040767,21]
[344028200,1733224038340,-1000.0,0.00040999,120]
[344028201,1733224038361,-1000.0,0.00041,120]
[344028202,1733224038382,-2078.65347116,0.00041,120]
[344028203,1733224038403,-6186.5234766,0.00041,30]
[344028204,1733224038423,-152.0,0.00041041,31]
[344028205,1733224038444,-152.0,0.00041041,31]
[344028206,1733224038466,-152.0,0.00041041,31]
[344028207,1733224038487,-152.0,0.00041041,31]
[344028208,1733224038508,-152.0,0.00041041,31]
[344028209,1733224038529,-152.0,0.00041041,31]
[344028210,1733224038551,-2000.0,0.00041095,30]
[344028211,1733224038572,-2000.0,0.00041095,30]
[344028212,1733224038596,-2000.0,0.00041095,30]
[344028213,1733224038623,-2000.0,0.00041095,30]
[344028214,1733224038646,-2000.0,0.00041095,30]
[344028215,1733224038668,-2000.0,0.00041095,30]
[344028216,1733224038689,-2000.0,0.00041095,30]
[344028217,1733224038713,-2000.0,0.00041095,30]
[344028218,1733224038735,-2138.44622196,0.00041095,30]
[344028219,1733224038755,-1000.0,0.00041095,120]
[344028220,1733224038777,-1005.71842646,0.00041095,30]
[344028221,1733224038799,-1011.47149273,0.00041095,120]
[344028222,1733224038823,-180.689633,0.00041096,2]
[344028223,1733224038855,-3238.97446665,0.000412,30]
[344028224,1733224038879,-151.0,0.0004126,120]
[344028225,1733224038901,-1000.0,0.000415,2]
[344028226,1733224038923,-196.042972,0.00041643,120]
[344028227,1733224038949,-196.042979,0.00041643,120]
[344028228,1733224038971,-999.0,0.00041643,120]
[344028229,1733224038992,-150.0,0.00041973,10]
[344028230,1733224039017,-1000.0,0.00042,120]
[344028231,1733224039039,-719243.65176796,0.00042,30]
[344028232,1733224039079,-172.212187,0.00028633,2]
[344028233,1733224039115,-155.7690759,0.00034603,30]
[344028234,1733224039135,-341576.9228201,0.00042,30]
[344028235,1733224040104,-363039.4914938,0.00042,30]
[344028236,1733224040125,-282280.30339143,0.00042,30]
[344028237,1733224040147,-83416.05663577,0.00042,30]
[344028238,1733224046197,-666.0,0.00030668,2]
[344028239,1733224046225,-70323.260562,0.00042,30]
[344028240,1733224047130,-158.0,0.00033,2]
[344028241,1733224047152,-77191.387762,0.00042,30]
[344028293,1733224232680,-1169.27083333,0.00025415,2]
[344028294,1733224232690,-384.65,0.000288,2]
[344028295,1733224232700,-391.65096,0.00029314,7]
[344028296,1733224232710,-192.5306214,0.00030137,120]
[344028297,1733224232720,-500.0,0.00030345,7]
[344028298,1733224232732,-500.0,0.00030409,7]
[344028299,1733224232744,-500.0,0.00030619,7]
[344028300,1733224232755,-400.0,0.00030667,2]
[344028301,1733224232765,-216.78838722,0.00030668,2]
[344028302,1733224232797,-6449.21161278,0.00030668,2]
[344028303,1733224232806,-433.24999078,0.00030668,2]
[344028304,1733224232816,-1174.35937792,0.00030669,2]
[344028305,1733224232826,-500.0,0.00030683,7]
[344028306,1733224232835,-37.55543652,0.00030768,2]
[344028326,1733224238721,-146.44456348,0.00030768,2]
[344028327,1733224238734,-1169.27083333,0.00030768,7]
[344028328,1733224238745,-1169.27083333,0.00030768,7]
[344028329,1733224238757,-1169.27083333,0.00030768,7]
[344028330,1733224238768,-42725.39329637,0.00030769,2]
[344028331,1733224238779,-222.96137851,0.00030769,7]
[344028332,1733224238790,-14638.21368846,0.00030769,10]
[344028333,1733224238835,-80970.650169,0.00030769,10]
[344028339,1733224238868,-7887.695618,0.00030769,10]
[344028351,1733224239955,-98075.16927147,0.00030769,10]
[344028352,1733224239967,-391.27394864,0.00030769,10]
[344028353,1733224239979,-879963.56705654,0.00030769,10]
[344028361,1733224241975,-128328.825074,0.00030769,10]
[344028362,1733224242598,-12359.316495,0.00030769,10]
[344028400,1733224243775,-151.0,0.00030768,7]
[344028401,1733224243785,-68993.00680832,0.00030769,10]
[344028402,1733224244535,-73369.60079442,0.00030769,10]
[344028403,1733224244547,-5826.38490121,0.00030769,10]
[344028427,1733224246682,-37989.433787,0.00030769,10]
[344028428,1733224246803,-2096.65435,0.00030769,10]
[344028429,1733224247463,-13440.404671,0.00030769,10]
[344028430,1733224247475,-23769.05721219,0.00030769,10]
[344028442,1733224500236,178.910669,0.00013973,2]
[344028447,1733225042339,1169.27083333,0.00025,2]
[344028449,1733225136261,178.910669,0.00013973,2]
[344028484,1733225368963,1169.27083333,0.00025,2]
[344028531,1733225431952,-1169.27083333,0.00025009,2]
[344028532,1733225431962,-2267.05635175,0.00026,3]
[344028533,1733225431973,-300.0,0.00027999,2]
[344028534,1733225431984,-11521.11177822,0.00028,2]
[344028535,1733225431994,-159.26571747,0.00028103,2]
[344028536,1733225432006,-346.19,0.000288,2]
[344028537,1733225432017,-151.0,0.0003,120]
[344028538,1733225432029,-151.0,0.0003,120]
[344028539,1733225432042,-800.9177077,0.0003,2]
[344028540,1733225432054,-1500.0,0.0003,2]
[344028541,1733225432064,-1024.69101681,0.0003,7]
[344028542,1733225432074,-167.94226634,0.0003,2]
[344028543,1733225432086,-412.79238942,0.0003,10]
[344028544,1733225432096,-5824.30347458,0.0003,3]
[344028546,1733225432110,-370.326,0.0003,3]
[344028547,1733225432122,-1799.5896497,0.0003,3]
[344028550,1733225432135,-500.41926023,0.0003,3]
[344028553,1733225432146,-152.89,0.000302,31]
[344028556,1733225432157,-152.89,0.000302,31]
[344028560,1733225432167,-152.89,0.000302,31]
[344028562,1733225432177,-420.0,0.00030239,2]
[344028564,1733225432187,-3760.75694944,0.00030425,2]
[344028567,1733225432197,-3833.84650006,0.00030669,2]
[344028570,1733225432215,-775.696,0.00030669,2]
[344028572,1733225432228,-2056.45749994,0.00030669,2]
[344028574,1733225432241,-2000.0,0.000307,4]
[344028576,1733225432251,-2000.0,0.000307,4]
[344028578,1733225432262,-257.23782228,0.000307,2]
[344028580,1733225432273,-500.0,0.00030766,7]
[344028582,1733225432283,-500.0,0.00030766,7]
[344028585,1733225432293,-500.0,0.00030766,7]
[344028587,1733225432303,-500.0,0.00030766,7]
[344028589,1733225432314,-500.0,0.00030766,7]
[344028591,1733225432323,-229.8062513,0.00030766,7]
[344028615,1733225437884,-330.35493269,0.000307,7]
[344028616,1733225437895,-270.1937487,0.00030766,7]
[344028617,1733225437904,-259.87849515,0.00030766,7]
[344028618,1733225437915,-500.0,0.00030766,7]
[344028619,1733225437924,-500.0,0.00030766,7]
[344028620,1733225437934,-368.0,0.00030767,2]
[344028621,1733225437943,-500.0,0.00030767,2]
[344028622,1733225437953,-500.0,0.00030767,7]
[344028624,1733225437963,-500.0,0.00030767,7]
[344028625,1733225437972,-500.0,0.00030767,7]
[344028627,1733225437982,-500.0,0.00030767,7]
[344028629,1733225437994,-500.0,0.00030767,7]
[344028631,1733225438003,-500.0,0.00030767,7]
[344028633,1733225438013,-151.0,0.00030769,7]
[344028635,1733225438023,-151.0,0.00030769,7]
[344028637,1733225438032,-151.0,0.00030769,7]
[344028639,1733225438042,-151.0,0.00030769,7]
[344028641,1733225438053,-151.0,0.00030769,7]
[344028643,1733225438063,-208.229092,0.00030769,7]
[344028645,1733225438072,-283.775497,0.00030769,7]
[344028647,1733225438083,-151.0,0.00030769,7]
[344028649,1733225438093,-151.0,0.00030769,7]
[344028651,1733225438103,-151.0,0.00030769,7]
[344028653,1733225438112,-151.0,0.00030769,7]
[344028655,1733225438127,-151.0,0.00030769,7]
[344028657,1733225438137,-151.0,0.00030769,7]
[344028659,1733225438147,-151.0,0.00030769,7]
[344028660,1733225438158,-151.0,0.00030769,7]
[344028662,1733225438167,-151.0,0.00030769,7]
[344028665,1733225438177,-181.605171,0.00030769,7]
[344028667,1733225438186,-1169.27083333,0.00030769,7]
[344028669,1733225438196,-1169.27083333,0.00030769,7]
[344028671,1733225438205,-152.89,0.000308,31]
[344028672,1733225438215,-152.89,0.000308,31]
[344028675,1733225438224,-152.89,0.000308,31]
[344028676,1733225438234,-152.89,0.000308,31]
[344028679,1733225438246,-152.89,0.000308,31]
[344028680,1733225438256,-152.89,0.000308,31]
[344028682,1733225438266,-17574.41,0.000308,10]
[344028684,1733225438277,-13703.42109423,0.00030827,2]
[344028685,1733225438286,-151.0,0.00030915,7]
[344028686,1733225438296,-151.0,0.00030915,7]
[344028687,1733225438307,-151.0,0.00030915,7]
[344028688,1733225438317,-151.0,0.00030915,7]
[344028689,1733225438327,-151.0,0.00030915,7]
[344028690,1733225438336,-151.0,0.00030915,7]
[344028691,1733225438346,-151.0,0.00030915,7]
[344028692,1733225438355,-151.0,0.00030915,7]
[344028693,1733225438364,-151.0,0.00030915,7]
[344028694,1733225438374,-151.0,0.00030915,7]
[344028695,1733225438383,-151.0,0.00030915,7]
[344028696,1733225438392,-269.554244,0.00030915,7]
[344028697,1733225438402,-151.0,0.00030915,7]
[344028698,1733225438412,-151.0,0.00030915,7]
[344028699,1733225438421,-151.0,0.00030915,7]
[344028700,1733225438431,-151.0,0.00030915,7]
[344028701,1733225438440,-151.0,0.00030915,7]
[344028702,1733225438449,-151.0,0.00030915,7]
[344028703,1733225438459,-152.741155,0.00030915,7]
[344028704,1733225438469,-151.0,0.00030915,7]
[344028705,1733225438479,-151.0,0.00030915,7]
[344028706,1733225438488,-151.0,0.00030915,7]
[344028707,1733225438500,-151.0,0.00030915,7]
[344028708,1733225438510,-151.0,0.00030915,7]
[344028709,1733225438519,-151.0,0.00030915,7]
[344028710,1733225438528,-151.0,0.00030915,7]
[344028711,1733225438537,-151.0,0.00030915,7]
[344028712,1733225438547,-151.0,0.00030915,7]
[344028713,1733225438556,-151.0,0.00030915,7]
[344028714,1733225438566,-151.0,0.00030915,7]
[344028715,1733225438575,-151.0,0.00030915,7]
[344028716,1733225438585,-294.473028,0.00030915,7]
[344028717,1733225438594,-151.0,0.00030915,7]
[344028718,1733225438603,-1169.27083333,0.00030915,7]
[344028719,1733225438613,-602.78815799,0.00030916,2]
[344028720,1733225438622,-500.0,0.00030916,2]
[344028721,1733225438631,-307.37966801,0.00030916,2]
[344028722,1733225438641,-500.0,0.00030916,2]
[344028723,1733225438650,-221.92367024,0.00030916,2]
[344028724,1733225438660,-532.0,0.00030917,2]
[344028725,1733225438670,-2377.0,0.00030917,2]
[344028726,1733225438680,-643.144131,0.00030917,7]
[344028727,1733225438689,-643.144131,0.00030917,7]
[344028728,1733225438699,-643.144131,0.00030917,7]
[344028729,1733225438708,-643.144131,0.00030917,7]